Cogmind - Beta 12 X4 @@@ ROGUE MODE // 2022.09.23 @ 12:46:12 Player: btmk16 Result: Destroyed by P-80 Master with Gamma Rifle Performance ------------- Evolutions (8) 4000 Regions Visited (15) 3000 Robots Destroyed (128) 640 Value Destroyed (6000) 6000 Prototype IDs (23) 460 Alien Tech Used (0) 0 Bonus (3150) 3150 TOTAL SCORE: 17250 Bonus ------- High Alert Combat Kills 204 Follower Combat Kills 886 Met Warlord at Base 500 MAIN.C Attacked Warlord 500 Warlord Defense Kills 1958 Friendly Fire -898 Cogmind --------- Core Integrity 0/1450 Matter 171/300 Energy 56/100 System Corruption 24% Temperature Cool (0) Movement Walking (120) Location -2/Research Parts ------- > --- POWER (2) -------- (None) > --- PROPULSION (6) --- Centrium Leg Centrium Leg > --- UTILITY (12) ----- Experimental Optical Array Experimental Optical Array Experimental Target Analyzer Improved System Shield > --- WEAPON (3) ------- (None) > --- INVENTORY (5) ---- Kinecellerator Faulty Precision Phase Gun Missile Launcher Hellfire Missile Launcher Peak State ------------ > --- POWER ------------ Vortex Chain Reactor > --- PROPULSION ------- Medium Treads Armored Medium Treads Armored Medium Treads Biometal Medium Treads Biometal Heavy Treads > --- UTILITY ---------- Experimental Coolant Injector Medium Storage Unit Enhanced Optical Array Experimental Target Analyzer Improved Heavy Armor Plating Experimental Focal Shield Advanced Remote Shield System Mapper System Shield Improved System Shield > --- WEAPON ----------- Heavy Autocannon > --- INVENTORY -------- Antimatter Reactor Myomer Leg Enhanced Biometal Leg Enhanced Biometal Leg Armored Huge Wheel Missile Launcher Phasing Sabre Vortex Lance Vortex Lance [Rating: 153] Favorites ----------- Power Reinforced Antimatter Reactor Engine Ion Engine Power Core Light Fission Core Reactor Reinforced Antimatter Reactor Propulsion Heavy Treads Treads Heavy Treads Leg Enhanced Biometal Leg Wheel Armored Huge Wheel Hover Unit Combat Linear Gravjet Flight Unit Cesium-ion Thruster Utility Medium Storage Unit Device Improved Force Field Storage Medium Storage Unit Processor Enhanced Optical Array Hackware System Shield Protection Damper Plating Weapon Advanced Variable Charge Gun Energy Gun Advanced Variable Charge Gun Energy Cannon Plasma Cannon Ballistic Gun Enhanced Autogun Ballistic Cannon Heavy Autocannon Launcher Missile Launcher Impact Weapon Powered Hammer Slashing Weapon Phasing Sabre Piercing Weapon Vortex Lance Build | -11 -10 -9 -8 -7 -7 -7 -6 -5 -4 -4 -4 -4 -3 -3 -2 ------- Run | Scr Mat Mat Mat Fac Was Fac Fac Fac Fac Upp Upp War Pro Res Res Slots Evolved 16 | . . 2 2 2 . . 2 2 2 . . . . 2 2 Power 1 | . . . . . . . . 1 . . . . . . . Propulsion 4 | . . 1 1 . . . . 1 . . . . . 1 . Utility 10 | . . 1 1 2 . . 2 . 2 . . . . 1 1 Weapon 1 | . . . . . . . . . . . . . . . 1 Parts Attached 172 | 8 7 8 7 1 13 6 9 4 18 11 13 14 1 45 7 Power 13 | 2 . 1 . . 2 . 1 1 4 . . 1 . 1 . Engine 3 | 2 . 1 . . . . . . . . . . . . . Core 2 | . . . . . . . 1 . 1 . . . . . . Reactor 8 | . . . . . 2 . . 1 3 . . 1 . 1 . Propulsion 50 | 2 2 3 1 . 2 5 1 1 3 3 5 3 . 14 5 Treads 32 | 2 2 . . . 1 4 1 1 3 3 3 3 . 9 . Leg 10 | . . . . . . . . . . . 2 . . 4 4 Wheel 2 | . . . . . . 1 . . . . . . . 1 . Hover 1 | . . . . . . . . . . . . . . . 1 Flight 5 | . . 3 1 . 1 . . . . . . . . . . Utility 60 | 1 1 3 4 1 6 1 3 . 7 6 5 5 1 15 1 Device 25 | . . . . 1 2 . 1 . 3 4 2 4 1 6 1 Storage 8 | 1 1 . . . . 1 . . 1 1 . . . 3 . Processor 9 | . . 2 1 . . . 1 . 1 1 . 1 . 2 . Hackware 5 | . . . 1 . . . 1 . . . 2 . . 1 . Protection 13 | . . 1 2 . 4 . . . 2 . 1 . . 3 . Artifact . | . . . . . . . . . . . . . . . . Weapon 49 | 3 4 1 2 . 3 . 4 2 4 2 3 5 . 15 1 Energy Gun 14 | . . 1 . . 2 . 1 . 2 1 . . . 7 . Energy Cannon 4 | . . . . . . . 1 . . . 2 1 . . . Ballistic Gun 14 | 3 4 . . . . . 2 1 2 1 . 1 . . . Ballistic Cannon 6 | . . . . . 1 . . . . . 1 1 . 3 . Launcher 2 | . . . . . . . . 1 . . . . . . 1 Special Weapon . | . . . . . . . . . . . . . . . . Impact Weapon 2 | . . . 2 . . . . . . . . . . . . Slashing Weapon 2 | . . . . . . . . . . . . . . 2 . Piercing Weapon 5 | . . . . . . . . . . . . 2 . 3 . Special Melee Weapon . | . . . . . . . . . . . . . . . . Unidentified Prototypes 16 | . . . . . 2 . 1 . . . . 8 . 4 1 Corrupted Parts 2 | . . . . . . . . . . . . . . 1 1 System Corruption 19 | . . . . . . . . . . . . . . 9 10 Parts Lost 59 | . . 5 3 . . . . . 1 16 1 . . 24 9 Power 4 | . . 1 1 . . . . . . . . . . 2 . Propulsion 20 | . . 2 1 . . . . . . 5 . . . 8 4 Utility 25 | . . . 1 . . . . . 1 8 1 . . 10 4 Weapon 10 | . . 2 . . . . . . . 3 . . . 4 1 Highest Loss Streak 12 | . . 3 2 . . . . . 1 8 1 . . 12 6 To Critical Strikes 3 | . . . . . . . . . . 2 . . . 1 . Average Slot Usage (%) 75 | . 94 77 91 72 86 66 72 70 82 72 75 82 73 70 40 Engine 1 | . 14 6 6 . . . . . . . . . . . . Reactor 5 | . . . . . 6 7 5 . 6 10 10 7 5 3 . Treads 16 | . 27 18 . . 3 15 20 23 21 15 11 21 21 14 . Flight 3 | . . 4 35 23 21 1 . . . . . . . . . Device 10 | . . . . 3 8 11 10 5 12 16 18 15 10 12 3 Storage 6 | . 23 12 . . . 3 6 5 9 9 10 7 5 4 3 Processor 6 | . . 12 14 15 11 . 5 5 5 7 6 7 10 5 13 Hackware 5 | . . . 7 7 5 . 2 5 5 . 5 10 10 13 7 Protection 5 | . . 3 10 7 11 7 6 5 5 4 3 5 5 2 . Energy Gun 3 | . . 4 1 . 11 7 5 . 1 3 . 1 . 2 . Ballistic Gun 4 | . 27 15 . . . . 4 10 8 3 . . . . . Ballistic Cannon 2 | . . . . . 2 7 2 . . . 4 1 5 2 . Naked Turns . | . . . . . . . . . . . . . . . . Heaviest Build 129 | 14 34 34 18 13 90 98 100 88 102 102 102 107 107 129 66 Greatest Support 192 | 40 40 40 20 15 70 110 118 138 150 150 154 158 157 192 85 Greatest Overweight (x) 4 | . 1 . . . 2 3 . . . . 1 . . 4 1 Average Overweight (x) . | . . . . . 1 1 . . . . . . . 1 . Largest Inventory Capacity 20 | 8 15 15 5 5 5 10 10 10 10 10 10 10 10 20 20 Average Capacity 9 | 7 12 13 5 5 5 7 10 10 10 10 10 10 10 12 11 Most Carried 20 | 6 15 15 5 5 5 10 10 10 10 10 10 10 10 20 12 Average Carried 9 | 3 10 13 4 5 4 7 9 9 9 9 9 9 9 11 7 Final Capacity 20 | 8 15 5 5 5 5 10 10 10 10 10 10 10 10 20 5 Final Carried 15 | 6 15 5 5 5 5 10 10 10 10 9 10 10 10 13 4 Class Distribution -------------------- 32% | Scavenger-Mutant 32% | Hacker-Mutant 26% | Mutant 6% | Derelict-Mutant Dominant Class ---------------- Mutant | -10/Materials Mutant | -9/Materials Sprinter | -8/Materials Sprinter | -7/Factory Mutant | -7/Waste Scavenger-Mutant | -7/Factory Scavenger-Mutant | -6/Factory Scavenger-Mutant | -5/Factory Scavenger-Mutant | -4/Factory Mutant | -4/Upper Caves Derelict-Mutant | -4/Upper Caves Hacker-Mutant | -4/Warlord Hacker-Mutant | -3/Proximity Caves Hacker-Mutant | -3/Research Mutant | -2/Research Resources | -11 -10 -9 -8 -7 -7 -7 -6 -5 -4 -4 -4 -4 -3 -3 -2 ----------- Run | Scr Mat Mat Mat Fac Was Fac Fac Fac Fac Upp Upp War Pro Res Res Matter Collected 5923 | 206 152 145 8 19 378 137 265 65 337 442 435 1006 173 2105 50 Remotely 474 | . . . . . . . . . . . . . . 474 . Salvage Created 6988 | . 243 191 16 19 506 493 848 108 515 304 386 583 113 2463 200 Parts 267 | . 28 8 1 . 9 25 35 9 23 11 9 11 5 85 8 Haulers Intercepted 5 | . 1 . . . . 2 . . . . . . . 2 . Recyclers Shooed 10 | . . . . . . 3 1 . 2 . . . . 4 . Parts Field Recycled . | . . . . . . . . . . . . . . . . Retrieved Matter . | . . . . . . . . . . . . . . . . Parts Self-Destructed 21 | . . . . . . . . . . 16 . . 5 . . Prevented 4 | . . . . . . . . . . . 4 . . . . Kills | -11 -10 -9 -8 -7 -7 -7 -6 -5 -4 -4 -4 -4 -3 -3 -2 ------- Run | Scr Mat Mat Mat Fac Was Fac Fac Fac Fac Upp Upp War Pro Res Res Combat Hostiles Destroyed 88 | . 5 4 2 . . 4 8 5 7 4 2 13 3 27 4 Melee 2 | . . . 1 . . . . . . . . . . 1 . Guns 30 | . 5 4 . . . 2 3 1 7 4 . . . 4 . Cannons 41 | . . . . . . 2 5 . . . 1 13 3 17 . AOE 8 | . . . . . . . . 4 . . . . . . 4 Classes Destroyed 18 | . 6 1 . . . 5 1 . 1 . . 3 . 1 . Worker 4 | . . . . . . 1 1 . 1 . . . . 1 . Builder 5 | . 1 . . . . 1 2 . . . . . . 1 . Hauler 5 | . 1 . . . . 2 . . . . . . . 2 . Recycler 12 | . . . . . . 2 3 . . . . . . 7 . Operator 4 | . 1 . . 1 . . 1 . . . . . . 1 . Watcher 7 | . 2 1 . . . 2 1 . . . . . . 1 . Swarmer 19 | . 3 . 2 . . 1 1 4 . . . . . 8 . Grunt 19 | . 2 2 . . . . 4 . 3 4 . 1 . 1 2 Brawler 3 | . . . . . . 1 . . . . . 2 . . . Duelist 2 | . . . . . . . . . 1 . . . . . 1 Protector 2 | . . . . . . . . . . . . 2 . . . Sentry 9 | . . 2 . . . . 2 . 1 . . . 1 3 . Hunter 15 | . . . . . . 1 1 . . . 2 . . 10 1 Programmer 16 | . . . . . . 1 . 1 2 . . 6 2 4 . Behemoth 1 | . . . . . . . . . . . . . . 1 . Striker 1 | . . . . . . . . . . . . 1 . . . Executioner 1 | . . . . . . . . . . . . 1 . . . Surgeon 2 | . . . . . . . 2 . . . . . . . . Savage 1 | . . . . . . . . . . . . 1 . . . Best Kill Streak 6 | . 3 3 2 1 . 3 6 4 2 2 1 4 2 4 4 Combat Bots Only 4 | . 3 3 2 . . 1 2 4 2 2 1 4 2 3 4 Max Kills in Single Turn 8 | . 2 1 1 1 . 1 8 3 1 1 1 1 1 1 2 Gunslinging 1 | . 1 . . . . . . . . . . . . . . Exploded 3 | . . . . . . . . 3 . . . . . . 2 Melee 1 | . . . 1 . . . . . . . . . . 1 . Uniques/NPCs Destroyed . | . . . . . . . . . . . . . . . . Combat | -11 -10 -9 -8 -7 -7 -7 -6 -5 -4 -4 -4 -4 -3 -3 -2 -------- Run | Scr Mat Mat Mat Fac Was Fac Fac Fac Fac Upp Upp War Pro Res Res Damage Taken 18352 | . 176 660 455 . . 93 962 159 919 4215 441 732 245 6047 3248 Core 3292 | . 29 193 92 . . 6 205 10 40 286 36 39 19 879 1458 Absorbed by Shields 1343 | . . . . . . 104 191 53 274 . . 215 75 431 . Reduced by Siege Mode 141 | . . . . . . . . . . 51 . . . 90 . Regen/Repaired (Parts) 738 | . . . . . 205 13 35 . . . . 485 . . . Core Remaining (%) 76 | 100 88 51 83 . . 99 75 99 . . . . 63 32 . Volleys Fired 470 | . 29 29 . . 11 26 44 14 41 33 34 53 16 137 3 Largest 2 | . 2 2 . . 2 2 2 2 2 2 1 1 1 2 1 Hottest 320 | . 40 76 . . 145 145 320 61 105 115 81 90 90 145 60 Shots Fired 676 | . 58 52 . . 22 33 87 26 75 45 34 52 16 173 3 Gun 451 | . 58 52 . . 21 23 72 23 75 45 . . . 82 . Cannon 219 | . . . . . 1 10 15 . . . 34 52 16 91 . Launcher 6 | . . . . . . . . 3 . . . . . . 3 Special . | . . . . . . . . . . . . . . . . Kinetic 445 | . 58 43 . . 1 10 46 23 55 40 10 52 16 91 . Thermal 151 | . . 9 . . 21 23 41 . 20 5 13 . . 19 . Explosive 6 | . . . . . . . . 3 . . . . . . 3 Electromagnetic 74 | . . . . . . . . . . . 11 . . 63 . Robot Hit Streak 24 | . 6 24 . . 18 24 9 8 19 9 12 12 7 11 3 Robot Miss Streak 4 | . 3 2 . . 2 3 4 2 4 3 3 3 2 3 . Penetration Max . | . . . . . . . . . . . . . . . . Secondary Targets 2 | . 1 . . . . . . . . 1 . . . . . Max Gunslinging Chain 1 | . 1 . . . . . . . . 1 . . . . . Shots Hit Robots 468 | . 32 43 3 1 19 23 47 16 46 34 24 37 10 130 3 Core Hits 212 | . 15 11 . . 9 14 32 9 25 13 10 17 4 45 8 Critical Kills . | . . . . . . . . . . . . . . . . Critical Parts Destroyed 3 | . . . 1 . . . . . . . 2 . . . . Critical Strikes 36 | . . . 1 . . 2 . . . . 2 5 2 24 . Burn 6 | . . . . . . . . . . . . . . 6 . Destroy 2 | . . . . . . . . . . . 2 . . . . Blast 18 | . . . . . . 2 . . . . . 5 2 9 . Corrupt 7 | . . . . . . . . . . . . . . 7 . Smash 1 | . . . 1 . . . . . . . . . . . . Sunder 2 | . . . . . . . . . . . . . . 2 . Melee Attacks 36 | . . . 7 2 . . . . . . . 1 . 25 1 Impact 9 | . . . 7 2 . . . . . . . . . . . Slashing 17 | . . . . . . . . . . . . . . 17 . Piercing 1 | . . . . . . . . . . . . . . . 1 Entropic 9 | . . . . . . . . . . . . 1 . 8 . Sneak Attacks 3 | . . . 1 . . . . . . . . . . 2 . Combat Hostiles . | . . . . . . . . . . . . . . . . Follow-up Attacks 1 | . . . . 1 . . . . . . . . . . . Damage Inflicted 19908 | . 376 544 146 28 545 847 2288 538 1194 873 509 3154 847 6972 1047 Guns 6504 | . 376 544 . . 507 439 904 303 1136 873 . . . 1422 . Cannons 9825 | . . . . . 38 308 375 . . . 509 3154 847 4594 . Explosions 2320 | . . . . . . 73 965 235 . . . . . . 1047 Melee 1082 | . . . 146 28 . . . . . . . . . 908 . Ramming 177 | . . . . . . 27 44 . 58 . . . . 48 . Kinetic 12120 | . 376 442 . . 38 308 629 303 582 764 83 3154 847 4594 . Thermal 4140 | . . 102 . . 507 512 1615 . 554 109 257 . . 484 . Explosive 1282 | . . . . . . . . 235 . . . . . . 1047 Electromagnetic 1107 | . . . . . . . . . . . 169 . . 938 . Impact 174 | . . . 146 28 . . . . . . . . . . . Slashing 171 | . . . . . . . . . . . . . . 171 . Piercing . | . . . . . . . . . . . . . . . . Entropic 737 | . . . . . . . . . . . . . . 737 . Highest Corruption 24 | . . 2 2 . . . . 1 2 2 2 5 5 11 24 Average Corruption 5 | . . 2 1 . . . . 1 1 2 2 3 2 9 16 Corruption Purged 5 | . . . . . . . . . . . . . 5 . . Corruption Blocked . | . . . . . . . . . . . . . . . . Effects 90 | . . 1 . . . . . 1 2 12 5 7 2 46 14 Message Errors 17 | . . . . . . . . . 1 3 . . 1 11 1 Matter Fused 16 | . . 1 . . . . . 1 . 3 2 . 1 6 2 Heat Flow Errors 10 | . . . . . . . . . . 2 . . . 6 2 Energy Discharges 10 | . . . . . . . . . . 1 . 1 . 6 2 Parts Rejected 3 | . . . . . . . . . . 1 . . . 1 1 Data Loss (minor) 8 | . . . . . . . . . 1 . 1 3 . 3 . Data Loss (major) 2 | . . . . . . . . . . . . . . 2 . Misfires 7 | . . . . . . . . . . 1 1 . . 5 . Alerts 5 | . . . . . . . . . . . . 2 . 3 . Misdirections 9 | . . . . . . . . . . . . . . 3 6 Weapon Failures 3 | . . . . . . . . . . 1 1 1 . . . Overload Shots 6 | . . . . . . . 6 . . . . . . . . Overflow Damage 1500 | . . . 114 13 . . 159 . . . 8 260 245 638 63 Projectiles 1108 | . . . 10 . . . 20 . . . 8 260 245 565 . Explosions 202 | . . . . . . . 139 . . . . . . . 63 Melee 190 | . . . 104 13 . . . . . . . . . 73 . Knockbacks 48 | . . . 2 . 1 1 1 . . . 2 8 5 28 . Impact 1 | . . . 1 . . . . . . . . . . . . Kinetic 41 | . . . . . 1 1 1 . . . 2 7 4 25 . Secondary 6 | . . . 1 . . . . . . . . 1 1 3 . Self-Inflicted Damage 306 | . . . . . . 3 194 . . . . . . 18 91 Shots 4 | . . . . . . . 3 . . . . . . . 1 Rammed 14 | . . . . . . 3 4 . 3 . . . . 4 . Targets Rammed 14 | . . . . . . 3 4 . 3 . . . . 4 . Kicked . | . . . . . . . . . . . . . . . . Crushed . | . . . . . . . . . . . . . . . . Highest Temperature 603 | . . 125 36 . 204 225 603 126 303 327 162 197 190 362 220 Average Temperature 91 | . . 42 13 . 93 77 145 47 104 156 59 86 96 88 105 Received Heat Transfer 2194 | . 48 270 153 . . 24 144 . 178 862 12 23 7 248 225 Effects 7 | . . . . . . . 7 . . . . . . . . Energy Bleed 1 | . . . . . . . 1 . . . . . . . . Interference 1 | . . . . . . . 1 . . . . . . . . Short Circuit 2 | . . . . . . . 2 . . . . . . . . Damage (minor) 2 | . . . . . . . 2 . . . . . . . . Damage (core) 1 | . . . . . . . 1 . . . . . . . . Siege Activations 10 | . . . . . . . . . . 1 . 2 1 6 . Total Turns 127 | . . . . . . . . . . 15 . 44 6 62 . Longest Duration 30 | . . . . . . . . . . 15 . 30 6 17 . Robots Corrupted 7 | . . . . . . . . . . . 1 . . 6 . Combat Hostiles 6 | . . . . . . . . . . . 1 . . 5 . Parts Fried 15 | . . . 3 2 . . . . . . 1 . . 9 . Impact Corruptions 7 | . . . 4 1 . . . . . . . . . 2 . Robots Melted . | . . . . . . . . . . . . . . . . Combat Hostiles . | . . . . . . . . . . . . . . . . Parts Melted 13 | . . . . . . 1 2 . . . . . . 10 . Heat Transferred 5515 | . . 259 . . 833 679 1542 . 518 148 500 . . 1036 . Parts Sabotaged . | . . . . . . . . . . . . . . . . Parts Stolen . | . . . . . . . . . . . . . . . . Parts Stripped . | . . . . . . . . . . . . . . . . Power Chain Reactions . | . . . . . . . . . . . . . . . . Missiles Intercepted . | . . . . . . . . . . . . . . . . Alert | -11 -10 -9 -8 -7 -7 -7 -6 -5 -4 -4 -4 -4 -3 -3 -2 ------- Run | Scr Mat Mat Mat Fac Was Fac Fac Fac Fac Upp Upp War Pro Res Res Peak Influence 966 | . 177 175 507 280 99 825 966 550 340 . . . . 392 471 Initial 413 | . . 11 5 230 98 . 403 413 193 . . . . 47 169 Average 277 | . 63 67 232 240 39 391 721 448 223 . . . . 194 308 Maximum Alert Level 3 | . . . 2 1 . 3 3 2 1 . . . . 1 2 Low Security (%) 50 | 100 100 100 50 . 100 31 . . 47 . . . . 51 37 Level 1 22 | . . . 25 100 . 21 1 21 52 . . . . 48 32 Level 2 16 | . . . 24 . . 34 36 78 . . . . . . 30 Level 3 10 | . . . . . . 12 61 . . . . . . . . Level 4 . | . . . . . . . . . . . . . . . . Level 5 . | . . . . . . . . . . . . . . . . High Security . | . . . . . . . . . . . . . . . . Max Security . | . . . . . . . . . . . . . . . . Squads Dispatched 35 | . 2 3 3 1 . 9 5 1 3 . . . . 7 1 Investigation 4 | . 1 2 . . . 1 . . . . . . . . . Extermination 6 | . . . . . . 2 . 1 1 . . . . 2 . Reinforcement 17 | . 1 1 3 1 . 2 1 . 2 . . . . 5 1 Assault 2 | . . . . . . 1 1 . . . . . . . . Garrison 6 | . . . . . . 3 3 . . . . . . . . Intercept . | . . . . . . . . . . . . . . . . Searches Triggered . | . . . . . . . . . . . . . . . . Construction Impeded 2 | . . . . . . . 1 . . . . . . 1 . Haulers Reinforced 2 | . . . . . . 1 . . . . . . . 1 . Active Scanning Responses . | . . . . . . . . . . . . . . . . Cargo Convoy Interrupts . | . . . . . . . . . . . . . . . . Stealth | -11 -10 -9 -8 -7 -7 -7 -6 -5 -4 -4 -4 -4 -3 -3 -2 --------- Run | Scr Mat Mat Mat Fac Was Fac Fac Fac Fac Upp Upp War Pro Res Res Distress Signals 13 | . 1 2 1 . . 3 . . . . . . . 3 3 Communications Jammed . | . . . . . . . . . . . . . . . . Distress Signals . | . . . . . . . . . . . . . . . . Times Spotted 257 | . 11 19 36 2 . 22 18 6 12 19 3 40 3 46 20 Peak Tracking Total 18 | . 4 9 18 1 . 5 6 4 4 8 1 7 2 5 12 Tactical Retreats 18 | . . 1 5 . . . . . 1 4 1 1 . 2 3 Traps | -11 -10 -9 -8 -7 -7 -7 -6 -5 -4 -4 -4 -4 -3 -3 -2 ------- Run | Scr Mat Mat Mat Fac Was Fac Fac Fac Fac Upp Upp War Pro Res Res Traps Triggered 15 | . 4 2 2 1 . 2 2 1 . . . . . 1 . Indirectly . | . . . . . . . . . . . . . . . . Trap Hack Attempts . | . . . . . . . . . . . . . . . . Triggered . | . . . . . . . . . . . . . . . . Disarmed . | . . . . . . . . . . . . . . . . Reprogrammed . | . . . . . . . . . . . . . . . . Reused . | . . . . . . . . . . . . . . . . Traps Extracted . | . . . . . . . . . . . . . . . . Installed . | . . . . . . . . . . . . . . . . Triggered 14 | . . . . . . . . . . . . 14 . . . Machines | -11 -10 -9 -8 -7 -7 -7 -6 -5 -4 -4 -4 -4 -3 -3 -2 ---------- Run | Scr Mat Mat Mat Fac Was Fac Fac Fac Fac Upp Upp War Pro Res Res Machines Disabled 20 | . 1 . . . . 5 9 . 1 . . . . 2 2 Max in Single Turn 8 | . 1 . . . . 4 8 . 1 . . . . 1 1 Garrison Access 3 | . . . . . . . 1 . . . . . . 1 1 Machines Sabotaged . | . . . . . . . . . . . . . . . . Overloaded Fab Kills . | . . . . . . . . . . . . . . . . Hacking | -11 -10 -9 -8 -7 -7 -7 -6 -5 -4 -4 -4 -4 -3 -3 -2 --------- Run | Scr Mat Mat Mat Fac Was Fac Fac Fac Fac Upp Upp War Pro Res Res Machines Accessed 20 | . . 2 1 . . 2 3 3 1 . . 1 . 7 . Terminals 13 | . . 2 1 . . 2 3 3 . . . . . 2 . Fabricators 2 | . . . . . . . . . 1 . . . . 1 . Repair Stations 1 | . . . . . . . . . . . . . . 1 . Recycling Units 1 | . . . . . . . . . . . . . . 1 . Scanalyzers 1 | . . . . . . . . . . . . . . 1 . Garrison Access 1 | . . . . . . . . . . . . . . 1 . Total Hacks 47 | . . 6 2 . . 7 5 8 1 . . 1 . 17 . Successful 21 | . . 1 . . . 3 1 5 1 . . 1 . 9 . Failed 26 | . . 5 2 . . 4 4 3 . . . . . 8 . Catastrophic 6 | . . 1 . . . 2 2 . . . . . . 1 . Database Lockouts . | . . . . . . . . . . . . . . . . Manual 12 | . . 5 1 . . 1 1 2 . . . . . 2 . Terminals 33 | . . 6 2 . . 7 5 8 . . . . . 5 . Fabricators 3 | . . . . . . . . . 1 . . . . 2 . Repair Stations 4 | . . . . . . . . . . . . . . 4 . Recycling Units 1 | . . . . . . . . . . . . . . 1 . Scanalyzers 3 | . . . . . . . . . . . . . . 3 . Garrison Access 2 | . . . . . . . . . . . . . . 2 . Terminal Hacks 12 | . . 1 . . . 3 1 3 . . . 1 . 3 . Prototype ID Bank 2 | . . . . . . 1 . . . . . . . 1 . Open Door 1 | . . . . . . . . . . . . 1 . . . Open DSF 1 | . . . . . . . . 1 . . . . . . . Level Access Points 1 | . . . . . . . 1 . . . . . . . . Emergency Access Points 1 | . . 1 . . . . . . . . . . . . . Terminal Index 1 | . . . . . . . . . . . . . . 1 . Alert Level 2 | . . . . . . 1 . 1 . . . . . . . Locate Traps 1 | . . . . . . 1 . . . . . . . . . Zone Layout 2 | . . . . . . . . 1 . . . . . 1 . Fabricator Hacks 2 | . . . . . . . . . 1 . . . . 1 . Network Status 1 | . . . . . . . . . . . . . . 1 . Build 1 | . . . . . . . . . 1 . . . . . . Repair Station Hacks 1 | . . . . . . . . . . . . . . 1 . Scan Component 1 | . . . . . . . . . . . . . . 1 . Recycling Unit Hacks 1 | . . . . . . . . . . . . . . 1 . Report Inventory 1 | . . . . . . . . . . . . . . 1 . Scanalyzer 1 | . . . . . . . . . . . . . . 1 . Insert Component 1 | . . . . . . . . . . . . . . 1 . Garrison Access Hacks 1 | . . . . . . . . . . . . . . 1 . Seal Access 1 | . . . . . . . . . . . . . . 1 . Unauthorized Hacks 3 | . . . . . . . . 2 . . . . . 1 . Terminals 3 | . . . . . . . . 2 . . . . . 1 . Assimilate 1 | . . . . . . . . 1 . . . . . . . Botnet 2 | . . . . . . . . 1 . . . . . 1 . Fabricators . | . . . . . . . . . . . . . . . . Repair Stations . | . . . . . . . . . . . . . . . . Recycling Units . | . . . . . . . . . . . . . . . . Scanalyzers . | . . . . . . . . . . . . . . . . Garrison Access . | . . . . . . . . . . . . . . . . Data Cores Recovered 2 | . . . . . . 1 1 . . . . . . . . Used . | . . . . . . . . . . . . . . . . Hacking Detections 15 | . . 2 1 . . 2 3 2 . . . . . 5 . Full Trace Events 2 | . . 1 . . . 1 . . . . . . . . . Feedback Events . | . . . . . . . . . . . . . . . . Feedback Blocked . | . . . . . . . . . . . . . . . . Robot Schematics Acquired . | . . . . . . . . . . . . . . . . Robots Built . | . . . . . . . . . . . . . . . . Authchips . | . . . . . . . . . . . . . . . . Time . | . . . . . . . . . . . . . . . . Total Robot Build Rating . | . . . . . . . . . . . . . . . . Part Schematics Acquired . | . . . . . . . . . . . . . . . . Parts Built 2 | . . . . . . . . . 2 . . . . . . Authchips . | . . . . . . . . . . . . . . . . Time 69 | . . . . . . . . . 69 . . . . . . Total Part Build Rating 18 | . . . . . . . . . 18 . . . . . . Parts Repaired . | . . . . . . . . . . . . . . . . Time . | . . . . . . . . . . . . . . . . Parts Recycled . | . . . . . . . . . . . . . . . . Recycled Matter . | . . . . . . . . . . . . . . . . Retrieved Matter . | . . . . . . . . . . . . . . . . Retrieved Components . | . . . . . . . . . . . . . . . . Parts Scanalyzed . | . . . . . . . . . . . . . . . . Part Schematics Acquired . | . . . . . . . . . . . . . . . . Parts Damaged . | . . . . . . . . . . . . . . . . Bothacking | -11 -10 -9 -8 -7 -7 -7 -6 -5 -4 -4 -4 -4 -3 -3 -2 ------------ Run | Scr Mat Mat Mat Fac Was Fac Fac Fac Fac Upp Upp War Pro Res Res Used RIF Installer . | . . . . . . . . . . . . . . . . Robots Hacked . | . . . . . . . . . . . . . . . . Non-combat . | . . . . . . . . . . . . . . . . Combat . | . . . . . . . . . . . . . . . . Robot Hacks Applied . | . . . . . . . . . . . . . . . . Relay Couplers Released 7 | . . . . . . . 2 4 . . . . . . 1 Machine Destruction 3 | . . . . . . . 2 . . . . . . . 1 Programmers 4 | . . . . . . . . 4 . . . . . . . Fabnet Peak Effective % . | . . . . . . . . . . . . . . . . Robots Rewired . | . . . . . . . . . . . . . . . . Allies Hacked . | . . . . . . . . . . . . . . . . Hacks Repelled 2 | . . . . . . . . . . . . 2 . . . Allies | -11 -10 -9 -8 -7 -7 -7 -6 -5 -4 -4 -4 -4 -3 -3 -2 -------- Run | Scr Mat Mat Mat Fac Was Fac Fac Fac Fac Upp Upp War Pro Res Res Total Allies 20 | . . . . . 20 . . . . . . . . . . Largest Group 20 | . . . . . 20 20 10 . . . . . . . . Highest-Rated Group 508 | . . . . . 508 507 284 . . . . . . . . Highest-Rated Ally 35 | . . . . . 35 35 31 . . . . . . . . Total Orders . | . . . . . . . . . . . . . . . . Ally Attacks 255 | . . . . . . 204 51 . . . . . . . . Total Damage 4047 | . . . . . . 3262 785 . . . . . . . . Kills 32 | . . . . . . 24 8 . . . . . . . . Allies Corrupted . | . . . . . . . . . . . . . . . . Allies Melted . | . . . . . . . . . . . . . . . . Intel | -11 -10 -9 -8 -7 -7 -7 -6 -5 -4 -4 -4 -4 -3 -3 -2 ------- Run | Scr Mat Mat Mat Fac Was Fac Fac Fac Fac Upp Upp War Pro Res Res Robot Analysis Total . | . . . . . . . . . . . . . . . . Derelict Logs Recovered 2 | . . . . . . . . . . 1 1 . . . . Drone Launches . | . . . . . . . . . . . . . . . . Drone Recoveries . | . . . . . . . . . . . . . . . . Exploration | -11 -10 -9 -8 -7 -7 -7 -6 -5 -4 -4 -4 -4 -3 -3 -2 ------------- Run | Scr Mat Mat Mat Fac Was Fac Fac Fac Fac Upp Upp War Pro Res Res Turns Passed 9770 | 87 562 407 154 21 1008 1006 1038 508 674 422 458 1080 318 1839 188 Spaces Moved 5531 | 47 285 301 451 56 530 575 511 283 272 207 231 546 165 880 191 Core 25 | 3 . . . . . . . . . . . . . . 22 Treads 3630 | 44 285 151 . . 213 351 511 283 272 207 231 546 165 371 . Legs 100 | . . . . . . . . . . . . . . 17 83 Wheels 716 | . . . . . . 224 . . . . . . . 492 . Hover 86 | . . . . . . . . . . . . . . . 86 Flight 974 | . . 150 451 56 317 . . . . . . . . . . Fastest Speed 26 | 50 160 29 26 29 29 145 160 165 158 145 145 156 161 103 50 Average Speed 141 | 152 160 94 26 29 178 159 163 165 162 158 158 157 161 148 84 Slowest Speed 240 | 160 240 160 29 29 240 240 166 165 165 163 225 161 161 225 170 Overloaded Moves . | . . . . . . . . . . . . . . . . Propulsion Burnouts . | . . . . . . . . . . . . . . . . Robots Hopped 15 | . . 2 13 . . . . . . . . . . . . Cave-ins Triggered . | . . . . . . . . . . . . . . . . Exploration Rate (%) 32 | 4 43 36 52 2 96 23 20 12 8 41 52 56 43 26 8 Regions Visited 15 Branch Regions 4 Pre-discovered Areas . | . . . . . . . . . . . . . . . . Known Exits Taken 2 | . . . 1 . . . 1 . . . . . . . . Unknown Exits Taken 11 | 1 1 1 . . . 1 . 1 1 1 1 1 1 1 . Scrap Searched 6 | . . . . . . . . . . 3 2 . 1 . . Spaces Dug 22 | . . . 2 . . . 3 6 . . . 1 2 8 . Terrain Destroyed 191 | . . . 2 . 1 25 51 15 4 9 3 4 6 32 39 Melee 10 | . . . 2 . . . . . . . . 1 . 7 . Projectile 61 | . . . . . 1 2 8 . 4 9 3 3 6 25 . AOE 120 | . . . . . . 23 43 15 . . . . . . 39 Terrain Rammed . | . . . . . . . . . . . . . . . . Walls Destroyed . | . . . . . . . . . . . . . . . . Machines Disabled . | . . . . . . . . . . . . . . . . Actions | -11 -10 -9 -8 -7 -7 -7 -6 -5 -4 -4 -4 -4 -3 -3 -2 --------- Run | Scr Mat Mat Mat Fac Was Fac Fac Fac Fac Upp Upp War Pro Res Res Total 6746 | 58 329 371 459 58 576 629 635 306 448 253 284 718 202 1208 212 Wait 368 | . . 15 5 . 4 . 61 3 100 . . 84 18 73 5 Move 5488 | 46 284 296 425 56 529 574 510 282 271 206 230 545 164 879 191 Hop 14 | . . 2 12 . . . . . . . . . . . . Pick Up 71 | 4 9 9 2 . 2 5 2 2 4 2 4 3 1 21 1 Fast Attach 102 | 6 7 5 4 1 10 5 4 1 8 6 9 9 1 23 3 Attach 43 | . . 3 2 . 1 . 1 1 3 4 3 . . 21 4 Detach 18 | . . 1 1 . 4 . . . 1 1 1 . . 8 1 Swap 28 | 2 . . 1 . 2 1 4 2 7 1 1 5 . 2 . Drop 88 | . . 11 1 . 13 7 5 1 10 . 2 18 2 15 3 Fire 470 | . 29 29 . . 11 26 44 14 41 33 34 53 16 137 3 Melee 34 | . . . 6 1 . . . . . . . 1 . 25 1 Ram 4 | . . . . . . 1 . . . . . . . 3 . Kick . | . . . . . . . . . . . . . . . . Crush 10 | . . . . . . 2 4 . 3 . . . . 1 . Escape Stasis 8 | . . . . . . 8 . . . . . . . . . Rewire . | . . . . . . . . . . . . . . . . Trap . | . . . . . . . . . . . . . . . . Miscellaneous . | . . . . . . . . . . . . . . . . Route ------- -11/Scrapyard -10/Materials (discovered 3 exits: *Mat x2 / [*Min]) -9/Materials (discovered 2 exits: *Mat / [*Min]) -8/Materials (discovered 3 exits: *Fac / *Sto x2) -7/Factory -7/Waste -7/Factory -6/Factory (discovered 4 exits: *Fac x4) -5/Factory -4/Factory -4/Upper Caves -4/Upper Caves (discovered 2 exits: *Res / *War) -4/Warlord -3/Proximity Caves -3/Research -2/Research History --------- Turn | Location | Event 42 | -11/Scrapyard | Discovered new exit (range 16) 88 | -11/Scrapyard | Entered Materials 220 | -10/Materials | Discovered new exit (range 3) 315 | -10/Materials | Build established: Mutant 320 | -10/Materials | Discovered new exit (range 13) 517 | -10/Materials | Discovered new exit (range 16) 650 | -10/Materials | Entered another Materials area 650 | -9/Materials | Evolved 2 slots: Propulsion x1, Utility x1 937 | -9/Materials | Discovered new exit (range 15) 1031 | -9/Materials | Lost 3 parts (2n1w) 1055 | -9/Materials | Discovered new exit (range 8) 1057 | -9/Materials | Entered another Materials area 1057 | -8/Materials | Evolved 2 slots: Propulsion x1, Utility x1 1116 | -8/Materials | Discovered new exit (range 15) 1121 | -8/Materials | Identified exit to Storage 1151 | -8/Materials | Discovered exit to Storage (range 15) 1205 | -8/Materials | Discovered new exit (range 15) 1211 | -8/Materials | Identified exit to Factory 1211 | -8/Materials | Entered Factory 1211 | -7/Factory | Evolved 2 slots: Utility x2 1232 | -7/Factory | Sucked down chute 1232 | -7/Factory | Entered Waste 1233 | -7/Waste | Joined by Warlord forces that had cleared the area 1762 | -7/Waste | Discovered new exit (range 14) 1999 | -7/Waste | Found Damper Plating 2003 | -7/Waste | Found Damper Plating 2240 | -7/Waste | Entered Factory 2240 | -7/Factory | Accompanied by 20 allies 2312 | -7/Factory | Build established: Scavenger-Mutant 2767 | -7/Factory | Garrison activated, responded to threat 3004 | -7/Factory | Discovered new exit (range 15) 3040 | -7/Factory | First assault squad dispatched 3246 | -7/Factory | Entered another Factory area 3246 | -6/Factory | Accompanied by 10 allies 3246 | -6/Factory | Evolved 2 slots: Utility x2 3378 | -6/Factory | Garrison activated, responded to threat 3643 | -6/Factory | Garrison activated, responded to threat 3685 | -6/Factory | Identified exit to Factory 4284 | -6/Factory | Entered another Factory area 4284 | -5/Factory | Evolved 2 slots: Power x1, Propulsion x1 4333 | -5/Factory | Identified exit to DSF 4749 | -5/Factory | Discovered new exit (range 16) 4792 | -5/Factory | Entered another Factory area 4792 | -4/Factory | Evolved 2 slots: Utility x2 5098 | -4/Factory | Fabricated Biometal Heavy Treads (x2) 5337 | -4/Factory | Discovered new exit (range 16) 5466 | -4/Factory | Entered Upper Caves 5560 | -4/Upper Caves | Encountered a Warlord checkpoint 5573 | -4/Upper Caves | Lost 8 parts (2n5u1w) 5601 | -4/Upper Caves | Attracted the attention of an 0b10 checkpoint 5631 | -4/Upper Caves | Learned Research emergency access door positions 5638 | -4/Upper Caves | Build established: Mutant 5748 | -4/Upper Caves | Attracted the attention of an 0b10 outpost 5801 | -4/Upper Caves | Lost 3 parts (2u1w) 5830 | -4/Upper Caves | Spotted B-86 Titan 5868 | -4/Upper Caves | Discovered new exit (range 16) 5875 | -4/Upper Caves | Lost 5 parts (3n1u1w) 5888 | -4/Upper Caves | Entered another Upper Caves area 5888 | -4/Upper Caves | Discovered new exit (range 6) 6001 | -4/Upper Caves | Learned Research terminal intel 6218 | -4/Upper Caves | Build established: Derelict-Mutant 6319 | -4/Upper Caves | Discovered new exit (range 10) 6346 | -4/Upper Caves | Entered Warlord 6399 | -4/Warlord | System corruption cleaned by Quarantine Array 6501 | -4/Warlord | Found Prototype Device 6501 | -4/Warlord | Identified Minesniffer Drone Bay 6620 | -4/Warlord | Visited the Vortex Lab 6633 | -4/Warlord | Warlord's base attacked by MAIN.C 6635 | -4/Warlord | Found Prototype Piercing Weapon 6635 | -4/Warlord | Identified Vortex Lance 6639 | -4/Warlord | Found Vortex Lance 6793 | -4/Warlord | Build established: Hacker-Mutant 6797 | -4/Warlord | Met Warlord 6843 | -4/Warlord | Found Prototype Reactor 6843 | -4/Warlord | Identified Vortex Chain Reactor 6858 | -4/Warlord | Found Prototype Hackware 6865 | -4/Warlord | Found Prototype Processor 6865 | -4/Warlord | Identified Exp. Target Analyzer 6868 | -4/Warlord | Found Prototype Device 6868 | -4/Warlord | Identified Exp. Focal Shield 6983 | -4/Warlord | Warlord forces counterattacked 7025 | -4/Warlord | Spotted Executioner 7031 | -4/Warlord | Found Prototype Ballistic Cannon 7031 | -4/Warlord | Identified Hvy. Autocannon 7140 | -4/Warlord | Spotted Striker 7151 | -4/Warlord | Spotted Striker 7168 | -4/Warlord | Destroyed Striker 7299 | -4/Warlord | Spotted Executioner 7308 | -4/Warlord | Warlord base infiltrated, sounded retreat 7362 | -4/Warlord | Spotted Executioner 7368 | -4/Warlord | Destroyed Executioner 7389 | -4/Warlord | Spotted Striker 7413 | -4/Warlord | Discovered new exit (range 9) 7426 | -4/Warlord | Entered Proximity Caves 7550 | -3/Proximity Caves | Attracted the attention of an 0b10 checkpoint 7646 | -3/Proximity Caves | Discovered new exit (range 12) 7744 | -3/Proximity Caves | Entered Research 7744 | -3/Research | Evolved 2 slots: Propulsion x1, Utility x1 7746 | -3/Research | Loaded intel: 22 terminal locations 7907 | -3/Research | Identified System Mapper 8140 | -3/Research | Spotted B-86 Titan 8197 | -3/Research | Destroyed B-86 Titan 8471 | -3/Research | Found Hvy. Reflective Plating 9131 | -3/Research | System corruption reached 10% 9199 | -3/Research | Lost 4 parts (3u1w) 9260 | -3/Research | Found Prototype Launcher 9262 | -3/Research | Found Prototype Launcher 9478 | -3/Research | Spotted B-86 Titan 9505 | -3/Research | Discovered new exit (range 7) 9563 | -3/Research | Found Enh. Force Lance 9565 | -3/Research | Found Enh. Force Lance 9568 | -3/Research | Found Enh. Force Lance 9569 | -3/Research | Core integrity fell below 50% 9583 | -3/Research | Entered another Research area 9583 | -2/Research | Warlord forces began assault on 0b10 9583 | -2/Research | Evolved 2 slots: Utility x1, Weapon x1 9584 | -2/Research | System corruption reached 10% 9608 | -2/Research | Lost 12 parts (2p6n2u2w) 9648 | -2/Research | Spotted B-90 Cyclops 9652 | -2/Research | Identified Hellfire Missile Launcher (x2) 9671 | -2/Research | Core integrity fell below 50% 9688 | -2/Research | Lost 6 parts (3n2u1w) 9693 | -2/Research | Research machine network offline 9740 | -2/Research | Core integrity fell below 20% 9771 | -2/Research | Destroyed by P-80 Master with Gamma Rifle Last Messages --------------- 09718_ System corrupted: Matter fused (-7). 09727_ Acquired Centrium Leg. 09735_ Reaction Control System destroyed. 09737_ Slug penetrates Terminal. 09737_ Terminal disabled. 09740_ System corrupted: Matter fused (-6). 09745_ Exp. Coolant Injector destroyed. 09745_ Penetrated by Slug. 09745_ Slug penetrates Wall. 09755_ Drone sends a signal. 09755_ H-88 Terminator retrieves Drone. 09756_ Penetrated by Slug. 09758_ System corrupted: Heat flow error (+269). 09759_ Penetrated by Slug. 09760_ Door malfunctions. 09762_ Penetrated by Slug. 09762_ Cmb. Linear Gravjet destroyed. 09765_ Slug penetrates Wall. 09766_ ALERT: Garrison Access compromised, dispatching assault squad. 09768_ Penetrated by Slug. Map ----- +----------------------------------------------------+ | | | | | | | | | | | | | ????????#######??????????????????? | | ????????# #?????????????????? | | ????????# !!! ?????????????????? | | ????????# !!! #?????????????????? | | ????????# !! #?????????????????? | | ????#???? #########?????????? | | ????# ????? #= ##########+ | | ????# #######+## | | ????# | | ????# | | ????#### Y | | ####???# Y##### | | #! ?## p##??# ]########### | | # # #??####/#####????????? | | # # [ !#??# #????????? | | # / #??# #????????? | | # # ph #??# #?######## | | ??????# #??# #?# | | ??????### ###??# "" #?# ] | | ????????#@#????# "T #?# | | ????????# #????# "" #???? | | ????????# #????# #????????? | | ????????# #????# #????????? | | ????????# #????##########????????? | | ????????# #??????????????????????? | | ????????# #??????#############???? | | ????????# ####???# ! ##### | | ????????# #???# # | | ????????#g #???# """"" # | | ????????# #???? """"" # | | ????????# #?????? """"" # | | ????????# #???????? # | | ????????# #?????????? # | | ????????# #############+### | | ????????# #? # | | ????????# #? * # | | ????????# #?? ?# | | ????????# #??! ?# | | ????????# #??? ??# ### | | ????????# #??? ??# #?# | | ????????# #####+#### #?# | | ????????# #?# | | ????????# #?# | | ????????# #?# | +----------------------------------------------------+ Best States ------------- Heat Dissipation 65 Coolant Potential 120 Energy Generation 55 Energy Capacity 700 Matter Stores 550 Matter Capacity 550 Sight Range 23 Terrain Scan Density 110 ECM Strength 2 Jamming Range 14 Armor Coverage 1600 Resistance: KI 30 Resistance: TH 25 Resistance: EM 90 Utility Shielding 66 Phase Shifting 10 Evasion (%) 64 Targeting Accuracy 8 Target Analysis 10 Recoil Reduction 9 Particle Charging 20 Force Boost 20 Offensive Hacking 20 Defensive Hacking 22 Item Schematics ----------------- None Robot Schematics ------------------ None Fabricated ------------ Biometal Heavy Treads | x2 | -4/Factory | Preloaded Alien Tech Used ----------------- None Achievements -------------- None Challenges ------------ None Game ------ Seed DisruptorThrowingBeam Manual? 0 Play Time 01:27:10 Cumulative 526.2 hours Start 2022.09.23 @ 10:15:10 End 2022.09.23 @ 12:46:12 Sessions 1 Manual Loads 0 Difficulty Rogue Special Mode None Game No. 588 Rogue 587 Adventurer 0 Explorer 1 Win Type - Total 20 Types 14/0/3/3/0/0/0/0/0 Lore% 81 Gallery% 91 Achievement% 73 Wizard Run 0 Options --------- ASCII 0 Keyboard 1 Movement Vi Keybinds 0 Fullscreen 1 Font 18/SmallcapsGlow Map View 76x50 Tactical HUD 1 Map Filters NONE Filters NONE Steam 1 RUN: 92a60536-85cd-4b61-9062-4bf4415a0723